Cogmind - Beta 16 @@@ ROGUE MODE // 2026.01.17 @ 15:22:26 Player: winnking222 Result: Self-destructed Performance ------------- Evolutions (6) 3000 Regions Visited (12) 2400 Robots Destroyed (80) 400 Value Destroyed (2909) 2909 Prototype IDs (36) 720 Alien Tech Used (0) 0 Bonus (2072) 2072 TOTAL SCORE: 11501 Bonus ------- High Alert Combat Kills 53 Follower Combat Kills 1794 Registered with UFD 300 Met Optimus in HQ 500 Built Enhanced Grunts 300 A7 Reached Mainframe 300 Met R17 at Cetus 500 Friendly Fire -1675 Cogmind --------- Core Integrity 970/1150 Matter 214/300 Energy 150/150 System Corruption 1% Temperature Cool (0) Movement Rolling (110) Ox1 Location -4/Factory Parts ------- > --- POWER (2) -------- Micro Fission Core > --- PROPULSION (6) --- Centrium Wheel > --- UTILITY (8) ------ Advanced Heat Sink Medium Storage Unit Advanced Signal Interpreter Improved Transmission Jammer Centrium Medium Armor Plating Improved Hacking Suite Advanced System Shield > --- WEAPON (3) ------- Companion Sword > --- INVENTORY (10) --- Improved Linear Gravjet Improved Linear Gravjet Improved Linear Gravjet Improved Linear Gravjet ECM Suite A0-MCA's Component Scanner Advanced System Restoration Module Tesla Rifle Peak State ------------ > --- POWER ------------ Light Angular Momentum Engine Light Angular Momentum Engine > --- PROPULSION ------- Centrium Heavy Treads Centrium Heavy Treads Centrium Heavy Treads > --- UTILITY ---------- Advanced Heat Sink Medium Storage Unit Advanced Signal Interpreter Improved Transmission Jammer Layered Light Armor Plating Centrium Medium Armor Plating Advanced Thermal Shield Advanced System Shield > --- WEAPON ----------- Railgun Advanced KE Penetrator Advanced KE Penetrator > --- INVENTORY -------- VTOL Module VTOL Module VTOL Module Field Propulsion Drive Impulse Thruster Array Structural Scanner ECM Suite A0-MCA's Component Scanner Companion Sword [Rating: 134] Favorites ----------- Power Light Fission Core Engine Light Angular Momentum Engine Power Core Light Fission Core Propulsion Centrium Heavy Treads Treads Centrium Heavy Treads Leg Aluminum Leg Wheel Compact Wheel Hover Unit Antigrav System Flight Unit VTOL Module Utility Seismic Detector Device Seismic Detector Storage High-capacity Storage Unit Processor Advanced Signal Interpreter Hackware Advanced System Shield Protection Centrium Medium Armor Plating Weapon Companion Sword Energy Gun Small Laser Energy Cannon Cooled Plasma Cannon Ballistic Gun Advanced KE Penetrator Launcher Grenade Launcher Special Weapon Plasma Cutter Slashing Weapon Companion Sword Special Melee Weapon Advanced Datajack Build | -11 -10 -10 -8 -6 -5 -5 -5 -5 -5 -5 -5 -4 ------- Run | Yrd Mat Sub Scr Fac Fac Was Fac Ext Cet Arc Hub Fac Slots Evolved 12 | . . . . 8 2 . . . . . . 2 Power 1 | . . . . . 1 . . . . . . . Propulsion 4 | . . . . 3 1 . . . . . . . Utility 6 | . . . . 5 . . . . . . . 1 Weapon 1 | . . . . . . . . . . . . 1 Parts Attached 117 | 7 11 5 5 26 5 . 11 13 13 5 4 12 Power 20 | 1 1 1 1 3 1 . 2 5 . 2 2 1 Engine 9 | 1 1 1 . 1 . . . 1 . 2 2 . Core 11 | . . . 1 2 1 . 2 4 . . . 1 Reactor . | . . . . . . . . . . . . . Propulsion 38 | 2 3 3 1 6 3 . 5 6 3 . . 6 Treads 7 | 2 . 2 . . . . . . 3 . . . Leg 2 | . 2 . . . . . . . . . . . Wheel 3 | . 1 1 . . . . . . . . . 1 Hover 3 | . . . . . . . . . . . . 3 Flight 23 | . . . 1 6 3 . 5 6 . . . 2 Utility 36 | 2 3 . 1 13 . . 3 1 6 2 1 4 Device 16 | 1 1 . . 4 . . 2 1 2 2 . 3 Storage 4 | 1 1 . 1 . . . . . 1 . . . Processor 5 | . . . . 4 . . . . 1 . . . Hackware 4 | . . . . 2 . . 1 . . . . 1 Protection 7 | . 1 . . 3 . . . . 2 . 1 . Artifact . | . . . . . . . . . . . . . Weapon 23 | 2 4 1 2 4 1 . 1 1 4 1 1 1 Energy Gun 8 | 2 2 1 . . . . . 1 1 . 1 . Energy Cannon 3 | . 1 . . 1 . . . . 1 . . . Ballistic Gun 6 | . 1 . . 1 1 . . . 2 . . 1 Ballistic Cannon . | . . . . . . . . . . . . . Launcher 2 | . . . . 2 . . . . . . . . Special Weapon 2 | . . . 1 . . . 1 . . . . . Impact Weapon . | . . . . . . . . . . . . . Slashing Weapon 1 | . . . 1 . . . . . . . . . Piercing Weapon . | . . . . . . . . . . . . . Special Melee Weapon 1 | . . . . . . . . . . 1 . . Unidentified Prototypes 16 | . . . 1 5 1 . 2 . 6 . 1 . Corrupted Parts 3 | . . . . . . . . . 3 . . . System Corruption 21 | . . . . . . . . . 21 . . . Parts Lost 42 | . 6 1 . 2 . . . 13 4 . 2 14 Power 9 | . 1 . . 1 . . . 3 . . 2 2 Propulsion 19 | . 2 . . . . . . 6 2 . . 9 Utility 7 | . . . . . . . . 2 2 . . 3 Weapon 7 | . 3 1 . 1 . . . 2 . . . . Highest Loss Streak 7 | . 3 1 . 1 . . . 5 3 . 2 7 To Critical Strikes . | . . . . . . . . . . . . . Average Backups 10 | 5 8 17 19 5 4 5 5 4 5 9 9 7 Power . | . . . . . . . . . . . . . Propulsion 2 | 3 3 6 3 . . . . . 1 4 4 3 Utility 5 | . 2 5 10 4 4 4 4 4 3 3 3 3 Weapon 2 | 1 1 6 4 . . 1 . . 1 2 1 . Tool/Special . | . . . . . . . . . . . . . Unused Backups 35 | . 4 . 11 9 . . 2 . 1 . . 8 Power . | . . . . . . . . . . . . . Propulsion 9 | . 3 . 2 . . . . . . . . 4 Utility 11 | . . . 2 5 . . 1 . . . . 3 Weapon 13 | . 1 . 7 2 . . 1 . 1 . . 1 Tool/Special 2 | . . . . 2 . . . . . . . . Average Slot Usage (%) 86 | . 98 98 82 84 87 90 94 77 80 76 80 76 Engine 5 | . 13 14 3 1 5 5 2 2 . 1 9 6 Core 5 | . . . 7 7 4 5 7 5 10 9 . 1 Treads 6 | . 14 19 . . . . . . 5 17 17 8 Leg 2 | . 11 5 . . . . . . . . . . Wheel 4 | . . 2 17 . . . . . . . . . Flight 10 | . . . 7 22 28 30 30 21 16 . . 3 Device 13 | . 12 14 14 15 15 15 12 12 11 12 11 14 Storage 7 | . 14 14 14 . . . . . 1 5 5 5 Processor 5 | . . . . 11 15 15 15 15 12 5 5 5 Hackware 3 | . . . . 4 5 5 9 10 5 5 5 5 Protection 2 | . 1 . . 5 5 5 3 2 6 5 11 6 Energy Gun 4 | . 21 14 . . . . . . . . . . Ballistic Gun 4 | . 6 12 . . . . . . 2 10 10 9 Special Weapon 2 | . . . 7 3 . . 4 3 . . . . Slashing Weapon 3 | . . . 8 5 5 5 5 5 3 . . 2 Peak Build Rating 134 | 7 8 13 25 98 113 106 128 128 125 126 125 134 Average Rating 56 | 5 7 10 17 71 101 106 115 96 95 115 122 105 On Entrance 72 | . 7 8 13 25 88 106 106 128 89 124 125 120 Avg Prop Armor Cover (%) 5 | . 10 . 6 2 . . . . . . 16 5 Naked Turns . | . . . . . . . . . . . . . Heaviest Build 93 | 13 49 52 93 33 33 33 37 35 59 60 55 59 Greatest Support 252 | 40 40 40 36 48 60 60 60 53 252 252 252 252 Greatest Overweight (x) 8 | . 2 2 5 . . . . 8 1 . . 5 Average Overweight (x) . | . . 1 3 . . . . . . . . . Largest Inventory Capacity 25 | 8 20 20 25 25 5 5 5 5 10 10 10 10 Average Capacity 12 | 7 12 20 22 5 5 5 5 5 6 10 10 10 Most Carried 25 | 7 15 20 25 23 5 5 5 5 10 10 10 10 Average Carried 11 | 5 8 17 20 5 4 5 5 4 6 10 9 8 Final Capacity 25 | 8 20 20 25 5 5 5 5 5 10 10 10 10 Final Carried 24 | 7 15 20 24 5 5 5 5 4 10 10 10 8 Class Distribution -------------------- 34% | Mutant 32% | Scavenger-Mutant 10% | Scout 7% | Hacker-Scout 6% | Scavenger-Sprinter 3% | Hacker-Sprinter Dominant Class ---------------- Mutant | -10/Materials Scavenger-Mutant | -10/Subcaves Mutant | -8/Scraptown Scout | -6/Factory Scout | -5/Factory Scout | -5/Waste Hacker-Scout | -5/Factory Hacker-Sprinter | -5/Extension Scavenger-Sprinter | -5/Cetus Scavenger-Mutant | -5/Archives Scavenger-Mutant | -5/Hub_04(d) Scavenger-Mutant | -4/Factory Resources | -11 -10 -10 -8 -6 -5 -5 -5 -5 -5 -5 -5 -4 ----------- Run | Yrd Mat Sub Scr Fac Fac Was Fac Ext Cet Arc Hub Fac Matter Collected 2615 | 270 359 101 60 312 60 . 110 125 278 466 149 325 Remotely . | . . . . . . . . . . . . . Salvage Created 4202 | 93 693 33 . 208 631 . 430 819 252 550 147 346 Parts 201 | 13 42 6 . 5 21 . 12 32 7 38 5 20 Haulers Intercepted 11 | . 1 . . 2 5 . 2 . . . 1 . Recyclers Shooed . | . . . . . . . . . . . . . Parts Field Recycled . | . . . . . . . . . . . . . Retrieved Matter . | . . . . . . . . . . . . . Parts Self-Destructed 2 | . . 2 . . . . . . . . . . Prevented . | . . . . . . . . . . . . . Parts Restored . | . . . . . . . . . . . . . Kills | -11 -10 -10 -8 -6 -5 -5 -5 -5 -5 -5 -5 -4 ------- Run | Yrd Mat Sub Scr Fac Fac Was Fac Ext Cet Arc Hub Fac Combat Hostiles Destroyed 39 | . 14 1 . . . . 1 13 2 1 1 6 Melee 16 | . . . . . . . 1 13 1 . . 1 Guns 21 | . 13 1 . . . . . . 1 1 1 4 Cannons 1 | . 1 . . . . . . . . . . . AOE 1 | . . . . . . . . . . . . 1 Classes Destroyed 13 | 2 3 1 . . . . 3 3 . . . 1 Worker 1 | 1 . . . . . . . . . . . . Builder 1 | . . . . . . . . . . . . 1 Tunneler 6 | 5 1 . . . . . . . . . . . Hauler 11 | . 1 . . 2 5 . 2 . . . 1 . Recycler 1 | . . . . . . . 1 . . . . . Operator 10 | . . . . . . . 1 . . 9 . . Watcher 7 | . 2 . . 1 3 . . . 1 . . . Swarmer 3 | . . . . . . . . 2 . . . 1 Grunt 17 | . 14 . . . . . . 2 . . 1 . Sentry 11 | . . . . . . . . 8 . 1 . 2 Hunter 2 | . . . . . . . . 1 1 . . . Programmer 4 | . . . . . . . 1 . . . . 3 Cetus Guard 1 | . . . . . . . . . 1 . . . Enhanced Grunt 1 | . . . . . . . . . . 1 . . Subdweller 1 | . . 1 . . . . . . . . . . Guerrilla 2 | . . . . . . . . . 1 1 . . Best Kill Streak 4 | 3 4 1 . 1 3 . 2 2 1 2 1 4 Combat Bots Only 4 | . 4 1 . . . . 1 2 1 1 1 3 Max Kills in Single Turn 2 | 1 2 1 . 1 1 . 1 1 1 1 1 1 Gunslinging . | . . . . . . . . . . . . . Exploded 1 | . . . . . . . . . . . . 1 Melee 1 | . . . . . . . 1 1 1 . . 1 Uniques/NPCs Destroyed 1 | . . . . . . . . . 1 . . . A7 (-5/Cetus) Combat | -11 -10 -10 -8 -6 -5 -5 -5 -5 -5 -5 -5 -4 -------- Run | Yrd Mat Sub Scr Fac Fac Was Fac Ext Cet Arc Hub Fac Hostile Shots Fired 475 | . 93 13 . 2 4 . 4 128 6 2 20 203 Missed 191 | . 22 1 . . 3 . 1 65 . 1 8 90 Hits 284 | . 71 12 . 2 1 . 3 63 6 1 12 113 Projectile 284 | . 71 12 . 2 1 . 3 63 6 1 12 113 AOE 2 | . . . . . 2 . . . . . . . Critical Strikes 15 | . . . . 1 . . . 3 4 . 2 5 Part Disruptions 1 | . . . . . . . . . . . . 1 Damage Taken 5639 | . 904 262 . 94 257 . 71 1403 341 81 570 1656 Core 927 | . 134 37 . . 91 . 23 372 41 30 19 180 Absorbed by Shields 86 | . . . . . . . . 86 . . . . Core Remaining (%) 68 | 100 . . 31 100 . . . . . . 42 . Volleys Fired 184 | 10 67 12 . 1 . . 1 4 9 48 14 18 Largest 3 | 2 2 2 . 1 . . 1 1 2 2 2 3 Hottest 240 | 80 80 80 . 105 . . 105 81 240 70 70 105 Shots Fired 356 | 20 134 20 . 1 . . 1 4 11 89 27 49 Gun 341 | 20 127 20 . . . . . 4 5 89 27 49 Cannon 15 | . 7 . . 1 . . 1 . 6 . . . Launcher . | . . . . . . . . . . . . . Special . | . . . . . . . . . . . . . Kinetic 185 | . 8 8 . . . . . . 4 89 27 49 Thermal 171 | 20 126 12 . 1 . . 1 4 7 . . . Explosive . | . . . . . . . . . . . . . Electromagnetic . | . . . . . . . . . . . . . Robot Hit Streak 13 | 6 13 2 . . . . . 6 2 10 10 7 Robot Miss Streak 5 | 2 4 2 . . . . . . 1 5 3 3 Penetration Max 1 | . . . . . . . . . . 1 . . Secondary Targets 1 | . 1 . . . . . . . . . . . Max Gunslinging Chain 1 | . 1 . . . . . . . . . . . Shots Hit Robots 299 | 15 76 8 . 8 15 . 8 42 15 53 20 39 Core Hits 131 | 6 39 2 . 4 9 . 5 17 6 25 6 12 Critical Kills 9 | . . . . . . . . . . 8 1 . Critical Parts Destroyed 9 | . . . . . . . . . . 6 2 1 Critical Strikes 20 | . . . . . . . . . 2 14 3 1 Destroy 18 | . . . . . . . . . . 14 3 1 Melee Attacks 195 | . . . . 34 40 . 25 63 16 1 . 16 Impact . | . . . . . . . . . . . . . Slashing 194 | . . . . 34 40 . 25 63 16 . . 16 Piercing . | . . . . . . . . . . . . . Sneak Attacks 18 | . . . . 2 6 . 3 2 5 . . . Combat Hostiles 1 | . . . . . . . . 1 . . . . Follow-up Attacks 2 | . . . . . . . . 1 . . . 1 Damage Inflicted 9079 | 172 1075 125 . 495 889 . 470 1853 712 1390 550 1348 Guns 3980 | 172 815 125 . . . . . 94 58 1390 550 776 Cannons 145 | . 105 . . . . . . . 40 . . . Explosions 343 | . 155 . . . . . . . . . . 188 Melee 4611 | . . . . 495 889 . 470 1759 614 . . 384 Ramming . | . . . . . . . . . . . . . Kinetic 2847 | . 34 39 . . . . . . 58 1390 550 776 Thermal 1466 | 172 886 86 . . . . . 94 40 . . 188 Explosive 155 | . 155 . . . . . . . . . . . Electromagnetic . | . . . . . . . . . . . . . Impact . | . . . . . . . . . . . . . Slashing 4611 | . . . . 495 889 . 470 1759 614 . . 384 Piercing . | . . . . . . . . . . . . . Highest Corruption 23 | . . . . . . . 1 2 23 23 10 1 Average Corruption 6 | . . . . . . . 1 1 8 14 10 1 Corruption Purged 13 | . . . . . . . . . . 13 . . Corruption Blocked . | . . . . . . . . . . . . . Effects 83 | . . . . . . . 1 11 24 29 16 2 Message Errors 22 | . . . . . . . 1 3 6 8 3 1 Matter Fused 16 | . . . . . . . . . 7 5 4 . Heat Flow Errors 12 | . . . . . . . . 3 4 2 2 1 Energy Discharges 11 | . . . . . . . . 4 1 5 1 . Data Loss (minor) 9 | . . . . . . . . 1 2 3 3 . Data Loss (major) 5 | . . . . . . . . . 2 1 2 . Misfires 2 | . . . . . . . . . 1 1 . . Weapon Failures 6 | . . . . . . . . . 1 4 1 . Overload Shots 3 | . . . . 1 . . 1 . 1 . . . Effects 1 | . . . . . . . . . 1 . . . Energy Bleed 1 | . . . . . . . . . 1 . . . Overflow Damage 282 | . . . . 82 38 . 27 . 11 . . 124 Projectiles . | . . . . . . . . . . . . . Explosions 96 | . . . . . . . . . . . . 96 Melee 186 | . . . . 82 38 . 27 . 11 . . 28 Knockbacks . | . . . . . . . . . . . . . Impact . | . . . . . . . . . . . . . Kinetic . | . . . . . . . . . . . . . Secondary . | . . . . . . . . . . . . . Self-Inflicted Damage 111 | . 77 . . . . . . . . . . 34 Shots 2 | . 1 . . . . . . . . . . 1 Rammed . | . . . . . . . . . . . . . Targets Rammed . | . . . . . . . . . . . . . Kicked . | . . . . . . . . . . . . . Crushed . | . . . . . . . . . . . . . Highest Temperature 441 | 54 441 . . 74 328 210 320 186 225 247 160 149 Average Temperature 96 | 21 121 . . 17 97 120 152 69 90 57 57 57 Received Heat Transfer 1017 | . 459 66 . 39 24 . . 263 27 9 54 76 Effects 12 | . 4 . . . 1 . 7 . . . . . Shutdowns 3 | . 1 . . . 1 . 1 . . . . . Energy Bleed 6 | . 1 . . . . . 5 . . . . . Interference 2 | . 1 . . . . . 1 . . . . . Matter Decay 1 | . 1 . . . . . . . . . . . Siege Activations . | . . . . . . . . . . . . . Martial Activations . | . . . . . . . . . . . . . Shielding Activations . | . . . . . . . . . . . . . Robots Disrupted . | . . . . . . . . . . . . . Combat Hostiles . | . . . . . . . . . . . . . Robots Corrupted . | . . . . . . . . . . . . . Combat Hostiles . | . . . . . . . . . . . . . Parts Fried 2 | . . . . . . . . 1 1 . . . Impact Corruptions . | . . . . . . . . . . . . . Robots Melted . | . . . . . . . . . . . . . Combat Hostiles . | . . . . . . . . . . . . . Parts Melted 3 | 2 1 . . . . . . . . . . . Heat Transferred 2795 | 400 1997 100 . . . . . 148 . . . 150 Parts Sabotaged . | . . . . . . . . . . . . . Parts Stolen . | . . . . . . . . . . . . . Parts Stripped . | . . . . . . . . . . . . . Power Chain Reactions . | . . . . . . . . . . . . . Alert | -11 -10 -10 -8 -6 -5 -5 -5 -5 -5 -5 -5 -4 ------- Run | Yrd Mat Sub Scr Fac Fac Was Fac Ext Cet Arc Hub Fac Maximum Alert Level 2 | . . . . . . . . 2 2 1 . 1 Low Security (%) 76 | 100 100 . . 100 100 100 100 86 . 30 100 78 Level 1 20 | . . . . . . . . 2 92 69 . 21 Level 2 2 | . . . . . . . . 11 7 . . . Level 3 . | . . . . . . . . . . . . . Level 4 . | . . . . . . . . . . . . . Level 5 . | . . . . . . . . . . . . . High Security . | . . . . . . . . . . . . . Max Security . | . . . . . . . . . . . . . Peak Influence 671 | 10 175 . . 128 66 . 30 671 427 297 130 257 Initial 372 | . 3 . . . 53 . . 11 372 127 44 8 Average 122 | 1 59 . . 49 35 . 8 134 350 223 78 117 Influence Increases 4139 | 30 419 . . 391 188 . 205 1378 535 316 212 465 Destroy 0b10 Robot/C 1520 | . 280 . . . . . 20 680 220 80 120 120 Destroy 0b10 Robot/NC 210 | 30 20 . . 15 40 . 20 15 10 45 5 10 Destroy Leader 250 | . 56 . . 6 16 . 14 64 20 . 32 42 Allied During Kill 609 | . . . . . . . . 300 191 80 37 1 Successful Hack 192 | . 18 . . 31 32 . 74 9 . . . 28 Disable Machine 270 | . 15 . . 15 . . . 45 30 75 . 90 Destroy Structure 428 | . 30 . . 24 40 . 32 70 64 36 18 114 Partial Spotted 120 | . . . . 15 45 . 45 15 . . . . Lose Combat Pursuer 540 | . . . . 285 15 . . 180 . . . 60 Influence Decreases 4076 | 25 415 9 . 282 297 . 182 736 881 506 323 420 Entered New Map 655 | . 2 5 . . 56 . . 12 293 192 85 10 Time Decay 2636 | 25 353 4 . 262 241 . 182 385 428 294 198 264 Lost Part 404 | . 60 . . 20 . . . 124 40 . 20 140 Lost Ally 381 | . . . . . . . . 215 120 20 20 6 Squads Dispatched 41 | . 5 . . 16 3 . 6 2 . . 5 4 Investigation 21 | . 4 . . 12 . . 4 1 . . . . Extermination 10 | . . . . 3 2 . 2 . . . 1 2 Reinforcement 10 | . 1 . . 1 1 . . 1 . . 4 2 Assault . | . . . . . . . . . . . . . Garrison . | . . . . . . . . . . . . . Intercept . | . . . . . . . . . . . . . Searches Triggered . | . . . . . . . . . . . . . Construction Impeded . | . . . . . . . . . . . . . Haulers Reinforced 1 | . . . . . . . . . . . 1 . Active Scanning Responses . | . . . . . . . . . . . . . Cargo Convoy Interrupts . | . . . . . . . . . . . . . Stealth | -11 -10 -10 -8 -6 -5 -5 -5 -5 -5 -5 -5 -4 --------- Run | Yrd Mat Sub Scr Fac Fac Was Fac Ext Cet Arc Hub Fac Distress Signals 6 | . 1 . . . . . . 1 2 . . 2 Communications Jammed 13 | . . . . . . . . . . . . 13 Distress Signals 13 | . . . . . . . . . . . . 13 Times Spotted 184 | . 28 3 . 15 10 4 2 49 12 25 8 28 Peak Tracking Total 12 | . 6 2 . 7 3 4 1 12 5 2 3 9 Tactical Retreats 18 | . 1 1 . 5 1 . . 8 . . . 2 Traps | -11 -10 -10 -8 -6 -5 -5 -5 -5 -5 -5 -5 -4 ------- Run | Yrd Mat Sub Scr Fac Fac Was Fac Ext Cet Arc Hub Fac Traps Triggered 9 | . 1 . . 4 2 . . 1 . . . 1 Indirectly . | . . . . . . . . . . . . . Trap Hack Attempts . | . . . . . . . . . . . . . Triggered . | . . . . . . . . . . . . . Disarmed . | . . . . . . . . . . . . . Reprogrammed . | . . . . . . . . . . . . . Reused . | . . . . . . . . . . . . . Traps Extracted . | . . . . . . . . . . . . . Installed . | . . . . . . . . . . . . . Triggered . | . . . . . . . . . . . . . Machines | -11 -10 -10 -8 -6 -5 -5 -5 -5 -5 -5 -5 -4 ---------- Run | Yrd Mat Sub Scr Fac Fac Was Fac Ext Cet Arc Hub Fac Machines Disabled 21 | . 2 1 . 1 . . . 3 3 5 . 6 Max in Single Turn 4 | . 2 1 . 1 . . . . 1 1 . 4 Energy Cycler 2 | . . . . . . . . 2 . . . . Machines Repaired . | . . . . . . . . . . . . . Machines Dismantled . | . . . . . . . . . . . . . Machines Sabotaged . | . . . . . . . . . . . . . Overloaded Fab Kills . | . . . . . . . . . . . . . Hacking | -11 -10 -10 -8 -6 -5 -5 -5 -5 -5 -5 -5 -4 --------- Run | Yrd Mat Sub Scr Fac Fac Was Fac Ext Cet Arc Hub Fac Machines Accessed 63 | . 7 2 3 17 4 . 11 8 3 . 1 7 Terminals 37 | . 7 . . 5 3 . 7 8 3 . . 4 Fabricators 3 | . . . . 2 . . 1 . . . . . Repair Stations . | . . . . . . . . . . . . . Recycling Units 9 | . . . . 7 . . 2 . . . . . Scanalyzers 5 | . . . . 1 1 . . . . . . 3 Garrison Access 4 | . . . . 2 . . 1 . . . 1 . Total Hacks 155 | . 18 5 9 33 9 . 39 16 7 . 1 18 Successful 99 | . 14 5 9 20 6 . 22 13 1 . 1 8 Failed 56 | . 4 . . 13 3 . 17 3 6 . . 10 Catastrophic 9 | . . . . 2 . . 3 . 3 . . 1 Database Lockouts . | . . . . . . . . . . . . . Manual 82 | . 15 . . 21 6 . 28 6 1 . . 5 Terminals 104 | . 18 . . 12 7 . 33 16 7 . . 11 Fabricators 5 | . . . . 3 . . 2 . . . . . Repair Stations . | . . . . . . . . . . . . . Recycling Units 14 | . . . . 11 . . 3 . . . . . Scanalyzers 12 | . . . . 3 2 . . . . . . 7 Garrison Access 6 | . . . . 4 . . 1 . . . 1 . Terminal Hacks 39 | . 4 5 9 2 1 . 7 8 1 . . 2 Record 10 | . . 4 2 2 . . 1 . 1 . . . Part Schematic 1 | . . . . . . . 1 . . . . . Robot Analysis 6 | . . . 6 . . . . . . . . . Prototype ID Bank 3 | . 2 . . . . . 1 . . . . . Open Door 6 | . . . 1 . . . . 5 . . . . Branch Access Points 1 | . . . . . . . . . . . . 1 Emergency Access Points 1 | . . . . . . . . . . . . 1 Recycling Unit Index 1 | . . . . . . . 1 . . . . . Alert Level 1 | . . . . . . . . 1 . . . . Locate Traps 4 | . 1 . . . 1 . 2 . . . . . Assault Status 1 | . . . . . . . . 1 . . . . Recall Extermination 1 | . . . . . . . 1 . . . . . Hauler Manifests 1 | . 1 . . . . . . . . . . . Zone Layout 1 | . . . . . . . . 1 . . . . Proto ID Catalog 1 | . . 1 . . . . . . . . . . Fabricator Hacks 3 | . . . . 2 . . 1 . . . . . Network Status 2 | . . . . 1 . . 1 . . . . . Build 1 | . . . . 1 . . . . . . . . Repair Station Hacks . | . . . . . . . . . . . . . Recycling Unit Hacks . | . . . . . . . . . . . . . Scanalyzer 8 | . . . . 3 2 . . . . . . 3 Retrieve Study 8 | . . . . 3 2 . . . . . . 3 Garrison Access Hacks 1 | . . . . . . . . . . . 1 . Unlock Access 1 | . . . . . . . . . . . 1 . Unauthorized Hacks 48 | . 10 . . 13 3 . 14 5 . . . 3 Terminals 39 | . 10 . . 6 3 . 12 5 . . . 3 Track 1 | . . . . . . . 1 . . . . . Assimilate 1 | . . . . . . . 1 . . . . . Botnet 18 | . 4 . . 3 2 . 4 3 . . . 2 Skim 19 | . 6 . . 3 1 . 6 2 . . . 1 Fabricators . | . . . . . . . . . . . . . Repair Stations . | . . . . . . . . . . . . . Recycling Units 9 | . . . . 7 . . 2 . . . . . Fedlink 9 | . . . . 7 . . 2 . . . . . Scanalyzers . | . . . . . . . . . . . . . Garrison Access . | . . . . . . . . . . . . . Data Cores Recovered 1 | . . . . . . . 1 . . . . . Used 1 | . . . . . . . 1 . . . . . Hacking Detections 37 | . 6 . . 10 4 . 6 2 3 . . 6 Full Trace Events 8 | . 2 . . 4 . . 1 1 . . . . Feedback Events . | . . . . . . . . . . . . . Feedback Blocked . | . . . . . . . . . . . . . Robot Schematics Acquired . | . . . . . . . . . . . . . Robots Built . | . . . . . . . . . . . . . Authchips . | . . . . . . . . . . . . . Time . | . . . . . . . . . . . . . Total Robot Build Rating . | . . . . . . . . . . . . . Part Schematics Acquired 1 | . . . . . . . 1 . . . . . Parts Built 1 | . . . . 1 . . . . . . . . Authchips . | . . . . . . . . . . . . . Time 64 | . . . . 64 . . . . . . . . Total Part Build Rating 8 | . . . . 8 . . . . . . . . Part Studies Acquired 7 | . . . . 3 1 . . . . . . 3 Parts Repaired . | . . . . . . . . . . . . . Time . | . . . . . . . . . . . . . Parts Recycled . | . . . . . . . . . . . . . Recycled Matter . | . . . . . . . . . . . . . Retrieved Matter . | . . . . . . . . . . . . . Retrieved Components . | . . . . . . . . . . . . . Parts Scanalyzed . | . . . . . . . . . . . . . Part Schematics Acquired . | . . . . . . . . . . . . . Parts Damaged . | . . . . . . . . . . . . . Bothacking | -11 -10 -10 -8 -6 -5 -5 -5 -5 -5 -5 -5 -4 ------------ Run | Yrd Mat Sub Scr Fac Fac Was Fac Ext Cet Arc Hub Fac Used RIF Installer . | . . . . . . . . . . . . . Robots Hacked 1 | . . . . . . . . . . 1 . . Non-combat 1 | . . . . . . . . . . 1 . . Combat . | . . . . . . . . . . . . . Robot Hacks Applied 1 | . . . . . . . . . . 1 . . check_alert 1 | . . . . . . . . . . 1 . . Relay Couplers Released 4 | . . . . . . . 4 . . . . . Programmers 4 | . . . . . . . 4 . . . . . Fabnet Peak Effective % . | . . . . . . . . . . . . . Robots Rewired 14 | . . . . . . . . 14 . . . . Allies Hacked . | . . . . . . . . . . . . . Hacks Repelled . | . . . . . . . . . . . . . Allies | -11 -10 -10 -8 -6 -5 -5 -5 -5 -5 -5 -5 -4 -------- Run | Yrd Mat Sub Scr Fac Fac Was Fac Ext Cet Arc Hub Fac Total Allies 26 | . . . . . . . . 21 5 . . . Largest Group 11 | . . . . . . . . 10 11 5 2 1 Highest-Rated Group 776 | . . . . . . . . 435 776 349 130 91 Highest-Rated Ally 159 | . . . . . . . . 159 137 96 96 91 Total Orders 2 | . . . . . . . . . . 2 . . STAY 1 | . . . . . . . . . . 1 . . FOLLOW 1 | . . . . . . . . . . 1 . . Ally Attacks 251 | . . . . . . . . 139 80 14 14 4 Total Damage 6521 | . . . . . . . . 2926 2606 383 467 139 Kills 44 | . . . . . . . . 25 10 3 5 1 Allies Corrupted . | . . . . . . . . . . . . . Allies Melted . | . . . . . . . . . . . . . Intel | -11 -10 -10 -8 -6 -5 -5 -5 -5 -5 -5 -5 -4 ------- Run | Yrd Mat Sub Scr Fac Fac Was Fac Ext Cet Arc Hub Fac Active Infowar (turns) 9955 | 54 1403 1224 2910 845 550 22 539 1093 703 . . 612 Optics 3139 | . . . . 481 550 22 530 1093 463 . . . Sensors 2393 | . . . . 842 550 22 539 440 . . . . Structural 3994 | . . . . 839 550 22 539 1093 703 . . 248 Seismic 5755 | 54 1403 1224 2910 164 . . . . . . . . Jamming 534 | . . . . . . . . . . . . 534 Robot Analysis Total 6 | . . . 6 . . . . . . . . . Derelict Logs Recovered 6 | . . 1 5 . . . . . . . . . Drone Launches . | . . . . . . . . . . . . . Drone Recoveries . | . . . . . . . . . . . . . Exploration | -11 -10 -10 -8 -6 -5 -5 -5 -5 -5 -5 -5 -4 ------------- Run | Yrd Mat Sub Scr Fac Fac Was Fac Ext Cet Arc Hub Fac Turns Passed 11852 | 218 1571 1224 2910 845 550 22 539 1093 1051 655 416 758 Spaces Moved 10132 | 122 627 518 1935 1843 1164 76 1077 1018 710 293 225 524 Core 27 | 24 . . . . . . . 3 . . . . Treads 1726 | 98 388 340 . . . . . . 164 293 225 218 Legs 280 | . 209 71 . . . . . . . . . . Wheels 2077 | . 30 107 1935 . . . . . . . . 5 Hover 281 | . . . . . . . . . . . . 281 Flight 5741 | . . . . 1843 1164 76 1077 1015 546 . . 20 Fastest Speed 21 | 50 100 117 117 26 24 25 25 21 21 160 160 27 Average Speed 83 | 138 178 217 148 28 25 25 25 29 58 160 160 107 Slowest Speed 450 | 160 260 260 175 32 29 25 25 450 160 160 160 445 Overloaded Moves 15 | . . . . 2 . . . 13 . . . . Propulsion Burnouts . | . . . . . . . . . . . . . Robots Hopped 28 | . . . . 3 7 . 2 15 . . . 1 Potential Cave-ins . | . . . . . . . . . . . . . Cave-ins Triggered . | . . . . . . . . . . . . . Exploration Rate (%) 53 | 7 95 25 86 50 25 77 26 92 84 93 21 17 Regions Visited 12 Branch Regions 6 Pre-discovered Areas 3 | . . . 1 1 . . 1 . . . . . Known Exits Taken 7 | . 1 . . 1 . . 1 1 1 1 1 . Unknown Exits Taken 3 | 1 . 1 1 . . . . . . . . . Scrap Searched 6 | . . 3 3 . . . . . . . . . Spaces Dug 92 | . . . . 24 20 . 16 3 5 . . 24 Terrain Destroyed 197 | . 32 . . 24 20 . 16 3 7 27 6 62 Melee 63 | . . . . 23 20 . 15 3 . . . 2 Projectile 52 | . . . . 1 . . 1 . 7 27 6 10 AOE 82 | . 32 . . . . . . . . . . 50 Terrain Rammed . | . . . . . . . . . . . . . Walls Destroyed . | . . . . . . . . . . . . . Machines Disabled . | . . . . . . . . . . . . . Actions | -11 -10 -10 -8 -6 -5 -5 -5 -5 -5 -5 -5 -4 --------- Run | Yrd Mat Sub Scr Fac Fac Was Fac Ext Cet Arc Hub Fac Total 12823 | 151 947 595 1987 2102 1350 78 1307 1701 1311 388 253 653 Wait 1840 | . 215 48 . 145 143 3 184 482 528 33 5 54 Move 10071 | 121 626 517 1934 1836 1151 75 1072 992 709 292 224 522 Hop 22 | . . . . 3 6 . 2 10 . . . 1 Pick Up 105 | 13 19 8 25 9 1 . 1 4 13 . 1 11 Fast Attach 67 | 1 2 . . 17 3 . 5 9 9 7 5 9 Attach 59 | 6 5 3 5 13 1 . . 5 8 . . 13 Detach 7 | . . . 1 1 . . 1 . 3 . . 1 Swap 24 | . 5 4 1 2 2 . 6 . 3 1 . . Drop 103 | . 8 3 21 23 3 . 10 3 13 6 4 9 Fire 184 | 10 67 12 . 1 . . 1 4 9 48 14 18 Melee 193 | . . . . 34 40 . 25 62 16 1 . 15 Ram . | . . . . . . . . . . . . . Kick . | . . . . . . . . . . . . . Crush . | . . . . . . . . . . . . . Escape Stasis 20 | . . . . 16 . . . 4 . . . . Rewire 126 | . . . . . . . . 126 . . . . Trap . | . . . . . . . . . . . . . Miscellaneous 2 | . . . . 2 . . . . . . . . Route ------- -11/Scrapyard -10/Materials (discovered 5 exits: [*Mat x3] / [*Min] / *Sub) -10/Subcaves (discovered 3 exits: *Mat x2 / *Scr) -8/Scraptown (discovered 2 exits: *Fac x2) -6/Factory (discovered 2 exits: *Fac / *Low) -5/Factory (discovered 3 exits: *Fac / *Upp / *Ext) -5/Waste -5/Factory (discovered 2 exits: *Upp / *Ext) -5/Extension (discovered 2 exits: *Fac / *Cet) -5/Cetus (discovered 2 exits: *Fac / *Arc) -5/Archives (discovered 3 exits: *Fac / *Hub x2) -5/Hub_04(d) (discovered 3 exits: *Fac x2 / Gar) -4/Factory (discovered 2 exits: Upp x2) History --------- Turn | Location | Event 6 | -11/Scrapyard | Discovered new exit (range 15) 219 | -11/Scrapyard | Entered Materials 315 | -10/Materials | Build established: Mutant 413 | -10/Materials | Discovered new exit (range 7) 632 | -10/Materials | Discovered new exit (range 16) 722 | -10/Materials | Discovered new exit (range 10) 919 | -10/Materials | Derelicts attacked the area 1067 | -10/Materials | Discovered new exit (range 8) 1104 | -10/Materials | Core integrity fell below 50% 1140 | -10/Materials | Lost 3 parts (1n2w) 1366 | -10/Materials | Identified exit to Subcaves 1402 | -10/Materials | Learned 4 Subcaves zone layouts 1415 | -10/Materials | Build established: Scavenger-Mutant 1426 | -10/Materials | Learned location of 2 exits from Mines 1440 | -10/Materials | Loaded intel: 14 trap records 1460 | -10/Materials | Learned 4 Subcaves zone layouts 1790 | -10/Materials | Entered Subcaves 1791 | -10/Subcaves | Approached by a straggling Scientist 1791 | -10/Subcaves | Identified exit to Materials 1803 | -10/Subcaves | Learned Materials trap positions 2107 | -10/Subcaves | Scientist uncovered a shortcut to Scraptown 2581 | -10/Subcaves | Visited 4L-MR0's lab 2605 | -10/Subcaves | Found Rainbow Chip 2731 | -10/Subcaves | Visited Clippyterm 2738 | -10/Subcaves | Learned Factory emergency access door positions 3014 | -10/Subcaves | Entered Scraptown 3146 | -8/Scraptown | Visited Fellowship of the Rings 3164 | -8/Scraptown | Visited Junk Repository 3303 | -8/Scraptown | Build established: Mutant 3382 | -8/Scraptown | Visited Spacefarers 3403 | -8/Scraptown | Visited Symbiants 3459 | -8/Scraptown | Scanned Subdweller tech in exchange for log data 3462 | -8/Scraptown | Learned Factory machine intel 3463 | -8/Scraptown | Learned Factory non-interactive machine intel 3464 | -8/Scraptown | Learned 8 Factory zone layouts 3465 | -8/Scraptown | Learned Factory terminal intel 3467 | -8/Scraptown | Learned location of Warlord (-5) 3481 | -8/Scraptown | Discovered new exit (range 11) 3662 | -8/Scraptown | Visited UFD Registry 3662 | -8/Scraptown | Registered with UFD as "Powermachine" 3695 | -8/Scraptown | Visited Scrapoid Pod Storage 3713 | -8/Scraptown | Visited Junk Repository 3752 | -8/Scraptown | Visited Curators Association 3815 | -8/Scraptown | Delivered Scrap Shield to a Scientist 3871 | -8/Scraptown | Visited Analyses Database 3898 | -8/Scraptown | Visited Scrap Suit Storage 3915 | -8/Scraptown | Visited Observation Area 3942 | -8/Scraptown | Visited Sword Containment 3968 | -8/Scraptown | Visited Supply Room 4007 | -8/Scraptown | Visited A0-MCA Data Center 4015 | -8/Scraptown | Given a C- rating by A0-MCA 4020 | -8/Scraptown | Found A0-MCA's Component Scanner 4101 | -8/Scraptown | Found Prototype Slashing Weapon 4102 | -8/Scraptown | Identified Companion Sword 4342 | -8/Scraptown | Found Scrapoid Pod 5495 | -8/Scraptown | Visited LU-1G1's Boring Crew 5700 | -8/Scraptown | Discovered new exit (range 5) 5817 | -8/Scraptown | Met Optimus 5817 | -8/Scraptown | Accepted into 0bPrime 5924 | -8/Scraptown | Entered Factory 5924 | -6/Factory | Evolved 8 slots: Propulsion x3, Utility x5 5927 | -6/Factory | Loaded intel: 318 machine locations 5928 | -6/Factory | Loaded intel: 264 non-interactive machine locations 5929 | -6/Factory | Loaded intel: 26 terminal locations 5930 | -6/Factory | Attached Rainbow Chip, gained temporary slots: Power, Propulsion, Utility, Weapon 6147 | -6/Factory | Loaded intel: 8 recycling unit locations 6293 | -6/Factory | Learned location of Protoforge (-3) 6388 | -6/Factory | Build established: Scout 6435 | -6/Factory | Fabricated Impulse Thruster Array? 6558 | -6/Factory | Discovered new exit (range 4) 6560 | -6/Factory | Identified exit to Lower Caves 6619 | -6/Factory | Found Prototype Launcher 6619 | -6/Factory | Identified Scatter Rocket Array 6695 | -6/Factory | Discovered new exit (range 8) 6697 | -6/Factory | Identified exit to Factory 6769 | -6/Factory | Entered another Factory area 6769 | -5/Factory | Evolved 2 slots: Power x1, Propulsion x1 6862 | -5/Factory | Spotted B-75 Beast 6877 | -5/Factory | Discovered new exit (range 5) 6882 | -5/Factory | Discovered new exit (range 17) 7186 | -5/Factory | Identified exit to Upper Caves 7265 | -5/Factory | Discovered new exit (range 11) 7319 | -5/Factory | Sucked down chute 7319 | -5/Factory | Entered Waste 7322 | -5/Waste | Spotted C-40 Crusher 7325 | -5/Waste | Spotted C-40 Crusher 7326 | -5/Waste | Spotted C-40 Crusher 7329 | -5/Waste | Spotted C-40 Crusher 7329 | -5/Waste | Spotted C-40 Crusher 7335 | -5/Waste | Discovered new exit (range 10) 7335 | -5/Waste | Spotted C-40 Crusher 7337 | -5/Waste | Identified exit to Factory 7341 | -5/Waste | Entered Factory 7358 | -5/Factory | Loaded intel: 8 recycling unit locations 7375 | -5/Factory | Noticed UFD Elites at a Recycling Unit 7632 | -5/Factory | Discovered exit to Upper Caves (range 6) 7689 | -5/Factory | Build established: Hacker-Scout 7706 | -5/Factory | Learned location of Armory (-3) 7751 | -5/Factory | Discovered new exit (range 12) 7772 | -5/Factory | Learned 4 Testing zone layouts 7789 | -5/Factory | Learned 4 Extension zone layouts 7797 | -5/Factory | Loaded intel: 6 repair station locations 7798 | -5/Factory | Learned location of 1 exit from Extension 7805 | -5/Factory | Learned location of 1 exit from Research 7822 | -5/Factory | Learned location of 2 exits from Research 7879 | -5/Factory | Identified exit to Extension 7880 | -5/Factory | Entered Extension 7881 | -5/Extension | Identified exit to Cetus 7882 | -5/Extension | Identified exit to Factory 8102 | -5/Extension | Spotted B-75 Beast 8104 | -5/Extension | Rescued a captive Derelict 8105 | -5/Extension | Rescued a captive Derelict 8174 | -5/Extension | Lost 5 parts (1p3n1u) 8175 | -5/Extension | Rescued a captive Derelict 8177 | -5/Extension | Rescued a captive Derelict 8358 | -5/Extension | Lost 3 allies 8614 | -5/Extension | Spotted B-75 Beast 8627 | -5/Extension | Rescued A7 8728 | -5/Extension | Rescued a captive Derelict 8773 | -5/Extension | Rescued a captive Derelict 8774 | -5/Extension | Rescued a captive Derelict 8824 | -5/Extension | Energy Cycler disabled 8973 | -5/Extension | Entered Cetus 8973 | -5/Cetus | Accompanied by 8 allies (A7) 8978 | -5/Cetus | Acquired a Cetus Manufacturing Module code from A7 9020 | -5/Cetus | Spotted Cetus Guard 9021 | -5/Cetus | Spotted Cetus Guard 9023 | -5/Cetus | Spotted Cetus Guard 9030 | -5/Cetus | Spotted Cetus Guard 9038 | -5/Cetus | Core integrity fell below 50% 9038 | -5/Cetus | Allies destroyed Cetus Guard 9039 | -5/Cetus | Allies destroyed Cetus Guard 9048 | -5/Cetus | Allies destroyed Cetus Guard 9059 | -5/Cetus | Allies destroyed Cetus Guard 9082 | -5/Cetus | Started Cetus Manufacturing Module 9085 | -5/Cetus | Lost 3 parts (1n2u) 9107 | -5/Cetus | Manufactured an Enhanced Grunt 9132 | -5/Cetus | Manufactured an Enhanced Grunt 9157 | -5/Cetus | Manufactured an Enhanced Grunt 9158 | -5/Cetus | Build established: Scavenger-Sprinter 9158 | -5/Cetus | Discovered new exit (range 22) 9182 | -5/Cetus | Manufactured an Enhanced Grunt 9207 | -5/Cetus | Manufactured an Enhanced Grunt 9270 | -5/Cetus | Spotted Cetus Guard 9271 | -5/Cetus | Spotted Cetus Guard 9283 | -5/Cetus | Spotted Cetus Guard 9285 | -5/Cetus | Spotted Cetus Guard 9293 | -5/Cetus | Allies destroyed Cetus Guard 9299 | -5/Cetus | Allies destroyed Cetus Guard 9299 | -5/Cetus | Discovered exit to Factory (range 22) 9300 | -5/Cetus | Allies destroyed Cetus Guard 9309 | -5/Cetus | Destroyed Cetus Guard 9311 | -5/Cetus | Met Revision 17 9329 | -5/Cetus | Lost 3 allies 9430 | -5/Cetus | Found Prototype Device 9430 | -5/Cetus | Identified Exp. Thermal Shield 9474 | -5/Cetus | Escorted A7 to Cetus Mainframe 9660 | -5/Cetus | Murdered A7 9663 | -5/Cetus | Extracted ID and sensor layout for unrecognized location from A7's data core 9717 | -5/Cetus | System corruption reached 10% 9723 | -5/Cetus | Security sweep announced 10013 | -5/Cetus | Identified exit to Archives 10014 | -5/Cetus | Build established: Scavenger-Mutant 10024 | -5/Cetus | Entered Archives 10024 | -5/Archives | Accompanied by 5 allies 10124 | -5/Archives | Discovered exit to Factory (range 16) 10275 | -5/Archives | Discovered new exit (range 16) 10302 | -5/Archives | Discovered new exit (range 14) 10672 | -5/Archives | Identified exit to Hub_04(d) 10679 | -5/Archives | Entered Hub_04(d) 10679 | -5/Hub_04(d) | Accompanied by 2 allies 10710 | -5/Hub_04(d) | Discovered exit to Factory (range 15) 10894 | -5/Hub_04(d) | Identified exit to Garrison 11031 | -5/Hub_04(d) | Discovered exit to Factory (range 5) 11095 | -5/Hub_04(d) | Entered Factory 11095 | -4/Factory | Accompanied by 1 ally 11095 | -4/Factory | Evolved 2 slots: Utility x1, Weapon x1 11378 | -4/Factory | Identified exit to Upper Caves 11625 | -4/Factory | Lost 6 parts (1p4n1u) 11853 | -4/Factory | Self-destructed Last Messages --------------- 11781_ Acquired Field Propulsion Drive+. 11803_ U-05 Engineer builds a Wall. 11804_ V# 4HOQJH/IMLQR,5COMMYHNDA5 XDD=9#2G 11808_ Acquired Imp. Hacking Suite. 11811_ W-44 Eye sends out distress signal. 11815_ Acquired Imp. Phase Shifter. 11827_ Antigrav System destroyed. 11834_ T-07 Excavator destroyed. 11836_ Antigrav System destroyed. 11838_ Destroyed VTOL Module. 11839_ Imp. Phase Shifter destroyed. 11839_ Structural Scanner destroyed. 11840_ Field Propulsion Drive+ destroyed. 11842_ S-27 Virus destroyed. 11842_ Companion Sword surprise attacks S-27 Virus. 11846_ ALERT: Potential suspicious activity detected, Programmers report to Factory Zone 7I. 11846_ Antigrav System destroyed. 11847_ Field Propulsion Drive+ destroyed. 11848_ Acquired 27 matter. Map ----- +----------------------------------------------------+ | | | ?????????????????????????????????????????????? | | ?????????????????????????????????????????????? | | ?????????????????????????????????????????????? | | ?????????????????????????????????????????????? | | ?????????????????????????????????????????????? | | ?????????????????????????????????????????????? | | ?????????????????????????????????????????????? | | ?????????????????????????????????????????????? | | ?????????????????????????????????????????????? | | ?????????????????????????????????????????????? | | ?????????????????????????????????????????????? | | ?????????????????????????????????????????????? | | ?????????????????????????????????????????????? | | ?????????????????????????????????????????????? | | ?????????????????????????????????######??????? | | ?????????????????????????????????######??????? | | ????????????????????????????????? ! ##??????? | | ???????????????????#####+###????? ##??????? | | ???????????????????? ###"??" ##??????? | | ????????????????????? ###"""" ##??????? | | ?????????????????????? ###"""" ##??????? | | ???????????????????????# ###"""" ##??????? | | ???????????????????????# A ###"""" ! ##??????? | | ???????????????????????# gg###"""" ##??????? | | ???????????????????????# @ =sss%| # ????? # | | ?????????????????????? # ###*s x # ????? # | | ?????????????????????? # ### ! # ???" # | | ?????????????????????? # #######/### ? "" # | | ??????????????????????## # """ # | | ???????????????????? + """ # | | ??????????????????????## # """ # | | ??????????????????????############+#+# ? # | | ?????????????? #???####### # ??? ! # | | ##########+##?#####????????##! # ????? # | | ?? ##????????## # ????? # | | ###### #########?##! ##??????? | | ######/############ ##??????? | | # ##### ##??????? | | # # + + * ##??????? | | # # """ """ """ ##### ##??????? | | + + """ """ """ ##### ##??????? | | # # """ """ """ ##?############??????? | | # # ###############??????? | | # #### ####################????????????????? | | # #### # """"""" """"""" ##????????????????? | | # #?## + """"""" """"""" ##????????????????? | | # #?## # """"""" """"""" ##????????????????? | | # #??# # """"""" """"""" ##????????????????? | | #+#??# # ##????????????????? | +----------------------------------------------------+ Best States ------------- Heat Dissipation 62 Energy Generation 32 Energy Capacity 410 Matter Stores 300 Matter Capacity 300 Sight Range 22 Robot Scan Range 16 Terrain Scan Density 10 Jamming Range 14 Additional Mass Support 12 Armor Coverage 450 Evasion (%) 65 Melee Accuracy 5 Recoil Reduction 6 Offensive Hacking 12 Defensive Hacking 14 Item Schematics ----------------- Cld. Cesium-ion Thruster | -5/Factory | Hacked Robot Schematics ------------------ None Fabricated ------------ Impulse Thruster Array | x1 | -6/Factory | Preloaded Repaired ---------- Nothing Studied --------- Flight Unit | -6/Factory | Hacked VTOL Module | -6/Factory | Hacked Lgt. Fission Core | -6/Factory | Hacked Nuclear Pulse Thruster | -5/Factory | Hacked Field Propulsion Drive | -4/Factory | Hacked Railgun | -4/Factory | Hacked Impulse Thruster Array | -4/Factory | Hacked Alien Tech Used ----------------- None Achievements -------------- Botjacking Challenges ------------ None Game ------ Seed SwarmExpertCanceller Manual? 0 Play Time 01:53:04 Cumulative 224.2 hours Start 2026.01.13 @ 18:05:19 End 2026.01.17 @ 15:22:26 Sessions 5 Manual Loads 0 Difficulty Rogue Special Mode None Game No. 312 Rogue 312 Adventurer 0 Explorer 0 Win Type - Total 3 Types 2/0/0/1/0/0/0/0/0/0 Lore% 75 Gallery% 74 Achievement% 51 Wizard Run 0 Options --------- Layout 0 ASCII 0 Keyboard 0 Movement Mouse Keybinds 0 Fullscreen 1 Font 16/SmallcapsGlow Map View 75x55 Zoom Use 0% Tactical HUD 1 Map Filters NONE Filters NONE Steam 1 RUN: 092dfa0b-5f2b-4a4f-80dc-fb53bb8d62a0